fUST/lending_fUST_20240502
["ID","MTS","AMOUNT","RATE_DAILY","PERIOD"]
[325241399,1714620652600,-703.67,0.00063013,120]
[325241400,1714620652609,-500.0,0.00063287,120]
[325241401,1714620652618,-1126.22,0.00063287,120]
[325241402,1714620652723,-500.0,0.00063287,120]
[325241403,1714620652734,-824.34,0.00063287,120]
[325241404,1714620652744,-2088.52,0.00063287,120]
[325241405,1714620652755,-1562.12,0.00063287,120]
[325241406,1714620652765,-2788.69,0.00063287,120]
[325241407,1714620652774,-702.6,0.00063287,120]
[325241408,1714620652784,-530.51,0.00063287,120]
[325241409,1714620652794,-1039.25,0.00063287,120]
[325241410,1714620652806,-517.15,0.00063287,120]
[325241411,1714620652815,-552.24,0.00063287,120]
[325241412,1714620652825,-607.06,0.00063287,120]
[325241413,1714620652835,-160.0,0.00063549,16]
[325241414,1714620652845,-703.67,0.00063561,120]
[325241415,1714620652854,-10000.0,0.00063666,120]
[325241416,1714620652864,-500.0,0.00063835,120]
[325241417,1714620652874,-1126.22,0.00063835,120]
[325241418,1714620652884,-500.0,0.00063835,120]
[325241419,1714620652893,-824.34,0.00063835,120]
[325241420,1714620652903,-2088.52,0.00063835,120]
[325241421,1714620652912,-1562.12,0.00063835,120]
[325241422,1714620652922,-2788.69,0.00063835,120]
[325241423,1714620652931,-702.6,0.00063835,120]
[325241424,1714620652941,-530.51,0.00063835,120]
[325241425,1714620652950,-1039.25,0.00063835,120]
[325241426,1714620652960,-517.15,0.00063835,120]
[325241427,1714620652969,-552.24,0.00063835,120]
[325241428,1714620652979,-607.06,0.00063835,120]
[325241429,1714620652989,-153.22879061,0.00063842,120]
[325241430,1714620652998,-3540.0,0.00064,120]
[325241431,1714620653008,-703.67,0.00064109,120]
[325241432,1714620653017,-160.0,0.00064253,17]
[325241433,1714620653027,-161.99063259,0.00064383,120]
[325241434,1714620653036,-500.0,0.00064383,120]
[325241435,1714620653046,-1126.22,0.00064383,120]
[325241436,1714620653055,-824.34,0.00064383,120]
[325241437,1714620653065,-2088.52,0.00064383,120]
[325241438,1714620653074,-1562.12,0.00064383,120]
[325241439,1714620653084,-2788.69,0.00064383,120]
[325241440,1714620653093,-702.6,0.00064383,120]
[325241441,1714620653103,-530.51,0.00064383,120]
[325241442,1714620653113,-1039.25,0.00064383,120]
[325241443,1714620653124,-517.15,0.00064383,120]
[325241444,1714620653134,-552.24,0.00064383,120]
[325241445,1714620653144,-607.06,0.00064383,120]
[325241446,1714620653154,-703.67,0.00064657,120]
[325241447,1714620653163,-10000.0,0.00064666,120]
[325241448,1714620653172,-339.02212123,0.00064931,120]
[325241449,1714620653182,-1126.22,0.00064931,120]
[325241450,1714620653191,-824.34,0.00064931,120]
[325241451,1714620653201,-2088.52,0.00064931,120]
[325241452,1714620653212,-1562.12,0.00064931,120]
[325241453,1714620653221,-2788.69,0.00064931,120]
[325241454,1714620653231,-702.6,0.00064931,120]
[325241455,1714620653240,-530.51,0.00064931,120]
[325241456,1714620653250,-1039.25,0.00064931,120]
[325241457,1714620653260,-517.15,0.00064931,120]
[325241458,1714620653270,-552.24,0.00064931,120]
[325241459,1714620653280,-607.06,0.00064931,120]
[325241460,1714620653290,-378.57667598,0.00064941,120]
[325241461,1714620653300,-378.57667597,0.00064941,120]
[325241462,1714620653310,-378.57667597,0.00064941,120]
[325241463,1714620653320,-160.0,0.00064957,18]
[325241464,1714620653329,-703.67,0.00065205,120]
[325241465,1714620653339,-1126.41170339,0.00065479,120]
[325241466,1714620653349,-824.51183589,0.00065479,120]
[325241467,1714620653358,-2088.57797639,0.00065479,120]
[325241468,1714620653368,-1562.19191182,0.00065479,120]
[325241469,1714620653378,-2788.81978381,0.00065479,120]
[325241470,1714620653388,-702.72830401,0.00065479,120]
[325241471,1714620653397,-530.60606379,0.00065479,120]
[325241472,1714620653407,-1039.36088183,0.00065479,120]
[325241473,1714620653418,-517.19532342,0.00065479,120]
[325241474,1714620653427,-552.31748523,0.00065479,120]
[325241475,1714620653436,-607.07702211,0.00065479,120]
[325241476,1714620653446,-200.0,0.00065622,120]
[325241477,1714620653455,-160.0,0.00065661,19]
[325241478,1714620653465,-10000.0,0.00065666,120]
[325241479,1714620653475,-151.0,0.00065726,120]
[325241480,1714620653484,-500.0,0.00065753,120]
[325241481,1714620653493,-500.0,0.00065753,120]
[325241482,1714620653502,-500.0,0.00065753,120]
[325241483,1714620653512,-500.0,0.00065753,120]
[325241484,1714620653521,-506.46723585,0.00065753,120]
[325241485,1714620653531,-703.67,0.00065753,120]
[325241486,1714620653540,-3540.0,0.00066,120]
[325241487,1714620653550,-703.67,0.00066301,120]
[325241488,1714620653560,-160.0,0.00066364,20]
[325241489,1714620653569,-10000.0,0.0006666,120]
[325241490,1714620653579,-703.67,0.00066849,120]
[325241491,1714620653588,-160.0,0.00067068,21]
[325241492,1714620653598,-232.91661117,0.00067068,5]
[325241493,1714620653607,-703.67,0.00067397,120]
[325241494,1714620653617,-10000.0,0.00067666,120]
[325241495,1714620653628,-90000.0,0.000678,120]
[325241496,1714620653639,-703.67,0.00067945,120]
[325241497,1714620653650,-3540.0,0.00068,120]
[325241498,1714620653659,-717.616397,0.00068464,2]
[325241499,1714620653669,-250.0,0.00068493,120]
[325241500,1714620653681,-500.0,0.00068493,120]
[325241501,1714620653691,-750.0,0.00068493,120]
[325241502,1714620653701,-1000.0,0.00068493,120]
[325241503,1714620653712,-1250.0,0.00068493,120]
[325241504,1714620653723,-264.13106255,0.00068493,120]
[325241505,1714620653732,-703.67,0.00068493,120]
[325241506,1714620653742,-250.0,0.00068493,30]
[325241507,1714620653752,-500.0,0.00068493,31]
[325241508,1714620653761,-206.3860506,0.00068493,32]
[325241509,1714620653770,-10000.0,0.00068666,120]
[325241510,1714620653780,-262.95588438,0.00069,7]
[325241511,1714620653790,-8000.0,0.00069,120]
[325241512,1714620653799,-3000.0,0.00069,120]
[325241513,1714620653809,-3000.0,0.0006901,120]
[325241514,1714620653818,-3000.0,0.0006902,120]
[325241515,1714620653828,-3000.0,0.0006903,120]
[325241516,1714620653837,-3982.563986,0.0006904,120]
[325241517,1714620653846,-703.67,0.00069041,120]
[325241518,1714620653856,-166.666666,0.00069041,120]
[325241519,1714620653865,-151.0,0.00069178,120]
[325241520,1714620653875,-78520.56,0.000693,120]
[325241521,1714620653884,-3540.0,0.000695,120]
[325241522,1714620653893,-703.67,0.00069589,120]
[325241523,1714620653902,-10000.0,0.00069666,120]
[325241524,1714620653912,-1810.0,0.0007,30]
[325241525,1714620653922,-3540.0,0.0007,120]
[325241526,1714620653931,-333.52401404,0.0007,120]
[325241527,1714620653941,-150.0,0.0007,120]
[325241528,1714620653950,-703.7274251,0.00070136,120]
[325241529,1714620653959,-3540.0,0.000705,120]
[325241530,1714620653969,-10000.0,0.00070666,120]
[325241531,1714620653978,-10000.0,0.00071666,120]
[325241532,1714620653988,-1810.0,0.00072,30]
[325241533,1714620653997,-3540.0,0.00072,120]
[325241534,1714620654006,-3540.0,0.000725,120]
[325241535,1714620654015,-2695.19883523,0.000725,120]
[325241536,1714620654025,-152.90040385,0.0007255,120]
[325241537,1714620654034,-240.6,0.0007261,120]
[325241538,1714620654044,-151.0,0.0007263,120]
[325241539,1714620654053,-10000.0,0.00072666,120]
[325241540,1714620654062,-1000.0,0.00073318,120]
[325241541,1714620654072,-3540.0,0.000735,120]
[325241542,1714620654081,-10000.0,0.00073666,120]
[325241543,1714620654090,-717.616397,0.00074174,120]
[325241544,1714620654099,-3540.0,0.000745,120]
[325241545,1714620654108,-10000.0,0.00074666,120]
[325241546,1714620654117,-1810.0,0.00075,30]
[325241547,1714620654129,-3540.0,0.000755,120]
[325241548,1714620654139,-10000.0,0.00075666,120]
[325241549,1714620654149,-191.03854948,0.00075834,120]
[325241550,1714620654160,-151.0,0.00076082,120]
[325241551,1714620654169,-3540.0,0.000765,120]
[325241552,1714620654178,-178.44955265,0.000765,120]
[325241553,1714620654187,-10000.0,0.00076666,120]
[325241554,1714620654196,-874.0,0.00076849,60]
[325241555,1714620654206,-3540.0,0.000775,120]
[325241556,1714620654216,-446.54665543,0.00077965,120]
[325241557,1714620654226,-33464.09378961,0.00078,60]
[325241558,1714620654235,-3540.0,0.000785,120]
[325241559,1714620654245,-188236.07724305,0.000786,120]
[325241560,1714620654255,-3540.0,0.000795,120]
[325241561,1714620654264,-151.0,0.00079534,120]
[325241562,1714620654273,-717.616397,0.00079885,120]
[325241563,1714620654283,-1810.0,0.0008,30]
[325241564,1714620654293,-3540.0,0.0008,120]
[325241565,1714620654302,-3540.0,0.0008,120]
[325241566,1714620654311,-661.80388598,0.0008,50]
[325241567,1714620654321,-3964.974633,0.0008,2]
[325241568,1714620654330,-3611.09225124,0.0008,120]
[325241569,1714620654339,-250.0,0.0008,120]
[325241570,1714620654349,-7613.08904392,0.0008,120]
[325241571,1714620654359,-100000.0,0.0008,120]
[325241572,1714620654368,-300.0,0.0008,105]
[325241573,1714620654379,-1776.847631,0.0008,120]
[325241574,1714620654388,-3540.0,0.000805,120]
[325241575,1714620654397,-152.90040385,0.00080854,120]
[325241576,1714620654406,-300.0,0.000815,106]
[325241577,1714620654415,-100000.0,0.00082,120]
[325241578,1714620654424,-2695.19883523,0.000825,120]
[325241579,1714620654433,-151.0,0.00082986,120]
[325241580,1714620654443,-300.0,0.00083,107]
[325241581,1714620654455,-1000.0,0.00083223,120]
[325241582,1714620654464,-281.30278383,0.00083737,120]
[325241583,1714620654473,-100000.0,0.00084,120]
[325241584,1714620654483,-300.0,0.000845,108]
[325241585,1714620654492,-153.22879061,0.00085031,120]
[325241586,1714620654501,-717.616397,0.00085595,120]
[325241587,1714620654510,-281.30278383,0.00085734,120]
[325241588,1714620654520,-300.0,0.00086,109]
[325241589,1714620654529,-166.666666,0.00086027,120]
[325241590,1714620654538,-151.0,0.00086438,120]
[325241591,1714620654549,-318.70698016,0.000875,110]
[325241592,1714620654559,-22728.38674929,0.00088,120]
[325241593,1714620654568,-281.30278383,0.00089015,120]
[325241594,1714620654577,-290.0,0.0008989,120]
[325241595,1714620654588,-1810.0,0.0009,30]
[325241596,1714620654597,-3540.0,0.0009,120]
[325241597,1714620654607,-717.616397,0.00091305,120]
[325241598,1714620654618,-153.22879061,0.00091716,120]
[325241599,1714620654629,-2695.19883523,0.000925,120]
[325241600,1714620654643,-281.30278383,0.00093427,120]
[325241601,1714620654653,-269.0,0.0009397,35]
[325241602,1714620654662,-269.0,0.0009398,35]
[325241603,1714620654672,-269.0,0.0009399,35]
[325241604,1714620654681,-1000000.0,0.000944,30]
[325241605,1714620654691,-5000.0,0.0009449,120]
[325241606,1714620654700,-157.98972523,0.00094606,120]
[325241607,1714620654710,-151.0,0.0009474,120]
[325241608,1714620654721,-6048.84585506,0.0009488,60]
[325241609,1714620654730,-717.616397,0.00097015,120]
[325241610,1714620654740,-6840.36980101,0.000975,30]
[325241611,1714620654749,-2061.56787621,0.00098,120]
[325241612,1714620654758,-100000.0,0.0009888,120]
[325241613,1714620654768,-1810.0,0.001,30]
[325241614,1714620654778,-3540.0,0.001,120]
[325241615,1714620654788,-25000.0,0.001,120]
[325241616,1714620654797,-13497.13057176,0.001,120]
[325241617,1714620654829,-1115.79345187,0.001,120]
[325241618,1714620654838,-890.11777478,0.001,120]
[325241619,1714620654848,-1000.0,0.001,2]
[325241620,1714620654857,-2900.0,0.001,120]
[325241621,1714620654867,-30000.0,0.001,60]
[325241622,1714620654877,-151.0,0.001,120]
[325241623,1714620654886,-2695.19883523,0.001025,120]
[325241624,1714620654896,-717.616397,0.00102725,120]
[325241625,1714620654906,-166.666666,0.00103014,120]
[325241626,1714620654915,-1000.0,0.0010497,120]
[325241627,1714620654924,-153.70268778,0.0010636,120]
[325241628,1714620654933,-281.30278383,0.00107029,120]
[325241629,1714620654942,-153.70268778,0.00107776,120]
[325241630,1714620654952,-717.616397,0.00108435,120]
[325241631,1714620654961,-1000.0,0.00109589,120]
[325241632,1714620654971,-1000.0,0.00109589,120]
[325241633,1714620654980,-1000.0,0.00109589,120]
[325241634,1714620654990,-1000.0,0.00109589,120]
[325241635,1714620654999,-1000.0,0.00109589,120]
[325241636,1714620655008,-1010.63350663,0.00109589,120]
[325241637,1714620655019,-1810.0,0.0011,30]
[325241638,1714620655028,-3540.0,0.0011,120]
[325241639,1714620655038,-281.30278383,0.00110021,120]
[325241640,1714620655052,-153.22879061,0.00110775,120]
[325241641,1714620655061,-446.54665543,0.00112094,120]
[325241642,1714620655071,-2695.19883523,0.001125,120]
[325241643,1714620655081,-240.6,0.00113344,120]
[325241644,1714620655090,-717.616397,0.00114146,120]
[325241645,1714620655099,-717.616397,0.00119856,120]
[325241646,1714620655109,-1810.0,0.0012,30]
[325241647,1714620655118,-3540.0,0.0012,120]
[325241648,1714620655130,-166.666666,0.0012,120]
[325241649,1714620655139,-153.70268778,0.00121295,120]
[325241650,1714620655149,-2695.19883523,0.001225,120]
[325241651,1714620655158,-281.30278383,0.00123398,120]
[325241652,1714620655167,-769.7,0.00123901,120]
[325241653,1714620655177,-717.616397,0.00125566,120]
[325241654,1714620655187,-446.54665543,0.0012648,120]
[325241655,1714620655196,-281.30278383,0.00128331,120]
[325241656,1714620655206,-446.54665543,0.00128383,120]
[325241657,1714620655215,-5000.0,0.0013,120]
[325241658,1714620655224,-3540.0,0.0013,120]
[325241659,1714620655233,-717.616397,0.00131276,120]
[325241660,1714620655243,-281.30278383,0.00131351,120]
[325241661,1714620655251,-8454.54549697,0.0013167,120]
[325241662,1714620655260,-5000.0,0.0013167,120]
[325241663,1714620655270,-153.70268778,0.00132176,120]
[325241664,1714620655279,-2695.19883523,0.001325,120]
[325241665,1714620655288,-100000.0,0.001333,120]
[325241666,1714620655297,-200.0,0.00135706,120]
[325241667,1714620655306,-500.0,0.00136986,120]
[325241668,1714620655320,-500.0,0.00136986,120]
[325241669,1714620655329,-500.0,0.00136986,120]
[325241670,1714620655338,-406.8038057,0.00136986,120]
[325241671,1714620655347,-717.616397,0.00136986,120]
[325241672,1714620655357,-166.666666,0.00136986,120]
[325241673,1714620655366,-151.0,0.00139479,120]
[325241674,1714620655377,-152.90040385,0.00139775,120]
[325241675,1714620655386,-269.0,0.0013998,35]
[325241676,1714620655395,-269.0,0.0013999,35]
[325241677,1714620655405,-3540.0,0.0014,120]
[325241678,1714620655414,-3000.0,0.0014,120]
[325241679,1714620655424,-2695.19783523,0.001425,120]
[325241680,1714620655433,-1003000.0,0.001442,30]
[325241681,1714620655442,-281.30278383,0.00144581,120]
[325241682,1714620655451,-5000.0,0.001449,120]
[325241683,1714620655461,-446.54665543,0.00149018,120]
[325241684,1714620655470,-5000.0,0.0015,120]
[325241685,1714620655479,-3540.0,0.0015,120]
[325241686,1714620655489,-198432.28232418,0.0015,120]
[325241687,1714620655498,-1000.0,0.00150684,7]
[325241688,1714620655507,-1000.0,0.00150684,7]
[325241689,1714620655517,-1000.0,0.00150684,7]
[325241690,1714620655526,-1000.0,0.00150684,7]
[325241691,1714620655536,-1000.0,0.00150684,7]
[325241692,1714620655545,-1000.0,0.00150684,7]
[325241693,1714620655556,-1000.0,0.00150684,7]
[325241694,1714620655565,-1000.0,0.00150684,7]
[325241695,1714620655575,-1000.0,0.00150684,7]
[325241696,1714620655585,-1000.0,0.00150684,7]
[325241697,1714620655594,-1000.0,0.00150684,7]
[325241698,1714620655603,-1000.0,0.00150684,7]
[325241699,1714620655612,-1000.0,0.00150684,7]
[325241700,1714620655622,-1000.0,0.00150684,7]
[325241701,1714620655634,-1000.0,0.00150684,7]
[325241702,1714620655648,-1000.0,0.00150684,7]
[325241703,1714620655657,-962.09223812,0.00150684,7]
[325241704,1714620655667,-240.6,0.00154078,120]
[325241705,1714620655678,-1000.0,0.00155,120]
[325241706,1714620655688,-769.7,0.00157804,120]
[325241707,1714620655698,-3540.0,0.0016,120]
[325241708,1714620655708,-281.30278383,0.00161754,120]
[325241709,1714620655719,-10117.72779259,0.00164,120]
[325241710,1714620655728,-153.70268778,0.00166827,120]
[325241711,1714620655738,-446.54665543,0.00167029,120]
[325241712,1714620655748,-281.30278383,0.0016775,120]
[325241713,1714620655757,-153.70268778,0.00174565,120]
[325241714,1714620655766,-153.70268778,0.001752,120]
[325241715,1714620655776,-100000.0,0.001777,120]
[325241716,1714620655786,-446.54665543,0.00179561,120]
[325241717,1714620655796,-628.19035384,0.0018,120]
[325241718,1714620655806,-3540.0,0.0018,120]
[325241719,1714620655815,-446.54665543,0.00182226,120]
[325241720,1714620655825,-446.54665543,0.00183522,120]
[325241721,1714620655834,-151.0,0.00184219,120]
[325241722,1714620655843,-167.523964,0.0018635,120]
[325241723,1714620655853,-4504.233509,0.0018635,120]
[325241724,1714620655863,-3726.090858,0.0018635,120]
[325241725,1714620655872,-3726.090858,0.00188679,120]
[325241726,1714620655882,-4504.233509,0.00188679,120]
[325241727,1714620655892,-281.30278383,0.00189173,120]
[325241728,1714620655902,-109769.0444,0.001899,120]
[325241729,1714620655911,-156.79615499,0.00191,120]
[325241730,1714620655921,-3726.090858,0.00191009,120]
[325241731,1714620655930,-4504.233509,0.00191009,120]
[325241732,1714620655940,-3726.090858,0.00193338,120]
[325241733,1714620655950,-4504.233509,0.00193338,120]
[325241734,1714620655959,-240.6,0.00194812,120]
[325241735,1714620655969,-200.0,0.00194947,120]
[325241736,1714620655978,-151.0,0.00195177,60]
[325241737,1714620655987,-4504.233509,0.00195667,120]
[325241738,1714620655998,-3726.090858,0.00195667,120]
[325241739,1714620656007,-281.30278383,0.00198561,120]
[325241740,1714620656017,-281.30278383,0.00198801,120]
[325241741,1714620656026,-500.0,0.001989,120]
[325241742,1714620656035,-25000.0,0.002,120]
[325241743,1714620656044,-1000.0,0.002,120]
[325241744,1714620656054,-3000.0,0.002,120]
[325241745,1714620656063,-756.52339564,0.002,120]
[325241746,1714620656072,-151.00132083,0.002,120]
[325241747,1714620656082,-769.7,0.0020157,120]
[325241748,1714620656092,-5000.0,0.002049,120]
[325241749,1714620656101,-1000.0,0.0020539,120]
[325241750,1714620656110,-15000.0,0.0021,120]
[325241751,1714620656119,-3540.0,0.0021,120]
[325241752,1714620656132,-390.07474462,0.00211833,2]
[325241753,1714620656142,-1000.0,0.0022,120]
[325241754,1714620656151,-281.30278383,0.00220665,120]
[325241755,1714620656162,-446.54665543,0.00221497,120]
[325241756,1714620656171,-200.0,0.00224744,120]
[325241757,1714620656181,-446.54665543,0.002255,120]
[325241758,1714620656190,-153.70268778,0.00225959,120]
[325241759,1714620656200,-281.30278383,0.00225971,120]
[325241760,1714620656210,-151.0,0.00228959,120]
[325241761,1714620656219,-153.70268778,0.00229815,120]
[325241762,1714620656229,-3540.0,0.0023,120]
[325241763,1714620656238,-240.6,0.00235546,120]
[325241764,1714620656247,-100000.0,0.0024,120]
[325241765,1714620656257,-152.90040385,0.00241485,120]
[325241766,1714620656267,-252.79370458,0.00243971,60]
[325241767,1714620656277,-446.54665543,0.00245384,120]
[325241768,1714620656286,-3540.0,0.0025,120]
[325241769,1714620656296,-1000.0,0.0025,2]
[325241770,1714620656305,-588.6648645,0.0025,120]
[325241771,1714620656314,-446.54665543,0.00251283,120]
[325241772,1714620656324,-3540.0,0.0026,120]
[325241773,1714620656334,-281.30278383,0.0026237,120]
[325241774,1714620656343,-281.30278383,0.00262536,120]
[325241775,1714620656353,-446.54665543,0.0026882,120]
[325241776,1714620656362,-446.54665543,0.00269982,120]
[325241777,1714620656371,-3540.0,0.0027,120]
[325241778,1714620656382,-100000.0,0.0027,120]
[325241779,1714620656394,-2930.45817315,0.0027,30]
[325241780,1714620656403,-281.30278383,0.00270816,120]
[325241781,1714620656413,-5000.0,0.002709,120]
[325241782,1714620656422,-153.70268778,0.00271114,120]
[325241783,1714620656432,-390.07474462,0.00273144,3]
[325241784,1714620656442,-151.0,0.00273699,120]
[325241785,1714620656451,-500.0,0.00273972,120]
[325241786,1714620656461,-500.0,0.00273972,120]
[325241787,1714620656470,-500.0,0.00273972,120]
[325241788,1714620656479,-500.0,0.00273972,120]
[325241789,1714620656489,-500.0,0.00273972,120]
[325241790,1714620656498,-500.0,0.00273972,120]
[325241791,1714620656508,-500.0,0.00273972,120]
[325241792,1714620656518,-500.0,0.00273972,120]
[325241793,1714620656527,-500.0,0.00273972,120]
[325241794,1714620656536,-500.0,0.00273972,120]
[325241795,1714620656546,-500.0,0.00273972,120]
[325241796,1714620656555,-500.0,0.00273972,120]
[325241797,1714620656565,-247.80405814,0.00273972,120]
[325241798,1714620656574,-22877.7072711,0.00273973,120]
[325241799,1714620656583,-769.7,0.00275785,120]
[325241800,1714620656593,-240.6,0.00276279,120]
[325241801,1714620656602,-153.70268778,0.00276584,120]
[325241802,1714620656612,-769.7,0.0027707,120]
[325241803,1714620656621,-1000.0,0.0027811,120]
[325241804,1714620656633,-153.22879061,0.00279358,120]
[325241805,1714620656644,-1540.0,0.0028,120]
[325241806,1714620656654,-281.30278383,0.00287842,120]
[325241807,1714620656664,-470.34150126,0.00289,120]
[325241808,1714620656675,-153.22879061,0.00290692,120]
[325241809,1714620656684,-15000.0,0.00297,120]
[325241810,1714620656694,-154.06570107,0.0029785,120]
[325241811,1714620656704,-500.0,0.002989,120]
[325241812,1714620656714,-2009.09283832,0.003,80]
[325241813,1714620656726,-2000.0,0.003,120]
[325241814,1714620656736,-20000.0,0.003,120]
[325241815,1714620656746,-25000.0,0.003,120]
[325241816,1714620656756,-14402.74599522,0.003,120]
[325241817,1714620656765,-488.73259101,0.003,120]
[325241818,1714620656775,-3000.0,0.003,120]
[325241819,1714620656785,-650.0,0.003,120]
[325241820,1714620656795,-281.30278383,0.00308344,120]
[325241821,1714620656804,-281.30278383,0.00313656,120]
[325241822,1714620656814,-153.70268778,0.00314039,120]
[325241823,1714620656824,-281.30278383,0.00314091,120]
[325241824,1714620656833,-240.6,0.00317013,120]
[325241825,1714620656843,-153.22879061,0.00317663,120]
[325241826,1714620656852,-200.0,0.00318259,120]
[325241827,1714620656862,-151.0,0.00318438,120]
[325241828,1714620656871,-1000.0,0.0032,120]
[325241829,1714620656882,-3540.0,0.0032,120]
[325241830,1714620656892,-446.54665543,0.00321815,120]
[325241831,1714620656902,-446.54665543,0.00324963,120]
[325241832,1714620656913,-446.54665543,0.00327156,120]
[325241833,1714620656923,-500.80401934,0.00328767,120]
[325241834,1714620656932,-932.0,0.00328858,120]
[325241835,1714620656943,-176404.65531162,0.003333,120]
[325241836,1714620656952,-390.07474462,0.00334455,6]
[325241837,1714620656963,-153.22879061,0.00336843,120]
[325241838,1714620656972,-446.54665543,0.0033721,120]
[325241839,1714620656982,-200.0,0.00339629,120]
[325241840,1714620656991,-281.30278383,0.00345858,120]
[325241841,1714620657001,-932.0,0.00346166,120]
[325241842,1714620657011,-5000.0,0.003469,120]
[325241843,1714620657021,-200.0,0.00348076,120]
[325241844,1714620657030,-153.70268778,0.00348631,120]
[325241845,1714620657040,-10000.0,0.0035,120]
[325241846,1714620657050,-3540.0,0.0035,120]
[325241847,1714620657059,-200.0,0.0035175,120]
[325241848,1714620657069,-600.0,0.0035378,7]
[325241849,1714620657078,-240.6,0.00357747,120]
[325241850,1714620657088,-152.90040385,0.0035785,120]
[325241851,1714620657097,-200.0,0.00358113,120]
[325241852,1714620657107,-152.90040385,0.00359694,120]
[325241853,1714620657116,-153.70268778,0.00361536,120]
[325241854,1714620657127,-151.0,0.00363178,120]
[325241855,1714620657137,-932.0,0.00364385,120]
[325241856,1714620657146,-153.70268778,0.00365832,120]
[325241857,1714620657155,-200.0,0.00366527,120]
[325241858,1714620657165,-3540.0,0.0037,120]
[325241859,1714620657175,-281.30278383,0.00371103,120]
[325241860,1714620657184,-153.70268778,0.00372074,120]
[325241861,1714620657194,-446.54665543,0.00374143,120]
[325241862,1714620657204,-200.0,0.00377173,120]
[325241863,1714620657214,-1000.0,0.0038,120]
[325241864,1714620657224,-3540.0,0.0038,120]
[325241865,1714620657234,-932.0,0.00383563,120]
[325241866,1714620657243,-156.79615499,0.00385,120]
[325241867,1714620657253,-153.70268778,0.00386019,120]
[325241868,1714620657262,-769.7,0.00386385,120]
[325241869,1714620657272,-281.30278383,0.00387761,120]
[325241870,1714620657282,-3503.16124986,0.0038995,120]
[325241871,1714620657291,-446.54665543,0.00391008,120]
[325241872,1714620657301,-1000.0,0.0039324,120]
[325241873,1714620657392,-390.07474462,0.00395766,9]
[325241874,1714620657410,-152.90040385,0.00398234,120]
[325241875,1714620657419,-240.6,0.00398481,120]
[325241876,1714620657429,-3540.0,0.004,120]
[325241877,1714620657439,-25000.0,0.004,120]
[325241878,1714620657448,-1000.0,0.004,2]
[325241879,1714620657457,-3000.0,0.004,120]
[325241880,1714620657467,-550.0,0.004,120]
[325241881,1714620657477,-150.0,0.004,120]
[325241882,1714620657487,-531762.70596358,0.004,120]
[325241887,1714621832645,-163.14974,0.00025923,2]
[325241888,1714621832654,-445.79970814,0.000276,2]
[325241889,1714621832663,-24900.0,0.00027649,2]
[325241890,1714621832673,-306.16416353,0.000277,2]
[325241891,1714621832682,-189.0935612,0.000278,2]
[325241893,1714621832692,-200.0,0.00027812,2]
[325241895,1714621832700,-221.97267688,0.00028,2]
[325241897,1714621832709,-1104.83924078,0.0003,7]
[325241899,1714621832718,-167.9644499,0.00031974,2]
[325241900,1714621832727,-150.0,0.00033869,3]
[325241902,1714621832736,-5000.0,0.00035259,4]
[325241904,1714621832745,-151.0,0.0005,120]
[325241905,1714621832754,-2695.19883524,0.000525,120]
[325241907,1714621832763,-500.0,0.00052876,120]
[325241908,1714621832771,-500.0,0.00052876,120]
[325241909,1714621832780,-500.0,0.00052876,120]